[Event "Live Chess"]
[Site "Chess.com"]
[Date "2023.05.21"]
[Round "-"]
[White "f4nomore"]
[Black "KeithArkell"]
[Result "0-1"]
[WhiteElo "1386"]
[BlackElo "2503"]
[TimeControl "300"]
[EndTime "4:22:37 PDT"]
[Termination "KeithArkell won by resignation"]

1. d4 {[%clk 0:04:58.4]} 1... c5 {[%clk 0:04:58.4]} 2. dxc5 {[%clk 0:04:55.8]}
2... e6 {[%clk 0:04:57.2]} 3. b4 {[%clk 0:04:51.6]} 3... a5 {[%clk 0:04:55.6]}
4. Bd2 {[%clk 0:04:48.4]} 4... axb4 {[%clk 0:04:53.9]} 5. Bxb4 {[%clk
0:04:47.1]} 5... Na6 {[%clk 0:04:53.1]} 6. Ba3 {[%clk 0:04:44.2]} 6... Bxc5
{[%clk 0:04:52]} 7. Bxc5 {[%clk 0:04:42.4]} 7... Nxc5 {[%clk 0:04:51.3]} 8. Nf3
{[%clk 0:04:40.3]} 8... Qa5+ {[%clk 0:04:48.5]} 9. Nbd2 {[%clk 0:04:33.1]} 9...
Nf6 {[%clk 0:04:46.3]} 10. e3 {[%clk 0:04:31.7]} 10... Nfe4 {[%clk 0:04:39]} 11.
Be2 {[%clk 0:04:29.6]} 11... Nc3 {[%clk 0:04:37.3]} 0-1

[Event "Live Chess"]
[Site "Chess.com"]
[Date "2023.05.21"]
[Round "-"]
[White "RoaringKnights"]
[Black "LL220284LL"]
[Result "0-1"]
[WhiteElo "1076"]
[BlackElo "2327"]
[TimeControl "300"]
[EndTime "4:22:53 PDT"]
[Termination "LL220284LL won by checkmate"]

1. e4 {[%clk 0:04:59.2]} 1... b6 {[%clk 0:04:58.5]} 2. Bc4 {[%clk 0:04:57]} 2...
Bb7 {[%clk 0:04:58.4]} 3. d3 {[%clk 0:04:55.4]} 3... e6 {[%clk 0:04:57.5]} 4.
Nf3 {[%clk 0:04:54.6]} 4... d5 {[%clk 0:04:56.2]} 5. exd5 {[%clk 0:04:53.3]}
5... exd5 {[%clk 0:04:56.1]} 6. Bb5+ {[%clk 0:04:52]} 6... c6 {[%clk 0:04:55]}
7. Ba4 {[%clk 0:04:49.5]} 7... Nf6 {[%clk 0:04:54.6]} 8. Bg5 {[%clk 0:04:47.4]}
8... Bd6 {[%clk 0:04:53.7]} 9. Qe2+ {[%clk 0:04:45.5]} 9... Qe7 {[%clk
0:04:49.8]} 10. Bxf6 {[%clk 0:04:43.3]} 10... Qxe2+ {[%clk 0:04:45.4]} 11. Kxe2
{[%clk 0:04:41.6]} 11... gxf6 {[%clk 0:04:45.3]} 12. Re1 {[%clk 0:04:40.6]}
12... Nd7 {[%clk 0:04:44.3]} 13. Kf1+ {[%clk 0:04:39.5]} 13... Kf8 {[%clk
0:04:43.3]} 14. Nc3 {[%clk 0:04:38.2]} 14... a5 {[%clk 0:04:40.4]} 15. Nd4
{[%clk 0:04:32]} 15... b5 {[%clk 0:04:37.2]} 16. Bxb5 {[%clk 0:04:30.7]} 16...
cxb5 {[%clk 0:04:36.1]} 17. Ncxb5 {[%clk 0:04:30]} 17... Be5 {[%clk 0:04:33.1]}
18. a4 {[%clk 0:04:23.3]} 18... Ba6 {[%clk 0:04:26.2]} 19. Re2 {[%clk
0:04:18.8]} 19... Nc5 {[%clk 0:04:23]} 20. Rae1 {[%clk 0:04:16.5]} 20... Nxa4
{[%clk 0:04:20]} 21. b3 {[%clk 0:04:14.9]} 21... Nc3 {[%clk 0:04:15]} 22. Nxc3
{[%clk 0:04:10]} 22... Bxd4 {[%clk 0:04:14.1]} 23. Re7 {[%clk 0:04:07.8]} 23...
Bxc3 {[%clk 0:04:12.4]} 24. R1e3 {[%clk 0:04:01.6]} 24... Bb5 {[%clk 0:04:10.8]}
25. Rc7 {[%clk 0:03:51.9]} 25... Bb4 {[%clk 0:04:07.3]} 26. c4 {[%clk
0:03:48.7]} 26... dxc4 {[%clk 0:04:03.7]} 27. dxc4 {[%clk 0:03:46.4]} 27... Be8
{[%clk 0:04:03.4]} 28. c5 {[%clk 0:03:40.8]} 28... Bb5+ {[%clk 0:03:59.4]} 29.
Kg1 {[%clk 0:03:37.7]} 29... Rg8 {[%clk 0:03:55.1]} 30. c6 {[%clk 0:03:35.3]}
30... Rg5 {[%clk 0:03:52]} 31. Rb7 {[%clk 0:03:33.7]} 31... Rc5 {[%clk
0:03:47.6]} 32. c7 {[%clk 0:03:30.3]} 32... Rc1+ {[%clk 0:03:46.3]} 33. Re1
{[%clk 0:03:28.1]} 33... Rxe1# {[%clk 0:03:46.2]} 0-1

[Event "Live Chess"]
[Site "Chess.com"]
[Date "2023.05.21"]
[Round "-"]
[White "miguelchuk"]
[Black "ProfPoisson"]
[Result "1-0"]
[WhiteElo "1581"]
[BlackElo "1215"]
[TimeControl "300"]
[EndTime "4:23:08 PDT"]
[Termination "miguelchuk won by resignation"]

1. b3 {[%clk 0:04:58]} 1... e5 {[%clk 0:04:53.3]} 2. Bb2 {[%clk 0:04:56.9]} 2...
Nc6 {[%clk 0:04:49.7]} 3. c4 {[%clk 0:04:55.9]} 3... b6 {[%clk 0:04:36]} 4. Nc3
{[%clk 0:04:53.8]} 4... Nf6 {[%clk 0:04:33.3]} 5. e3 {[%clk 0:04:47.3]} 5... a5
{[%clk 0:04:30.6]} 6. Nge2 {[%clk 0:04:39.6]} 6... Nb4 {[%clk 0:04:27.2]} 7. d3
{[%clk 0:04:36.6]} 7... Bc5 {[%clk 0:03:59.3]} 8. a3 {[%clk 0:04:34.6]} 8... Nc6
{[%clk 0:03:53.9]} 9. f3 {[%clk 0:04:16.3]} 9... d5 {[%clk 0:03:50.9]} 10. cxd5
{[%clk 0:04:03.3]} 10... Nxd5 {[%clk 0:03:46.9]} 11. Nxd5 {[%clk 0:03:45.7]}
11... Qxd5 {[%clk 0:03:44]} 12. Nc3 {[%clk 0:03:38.8]} 12... Qe6 {[%clk
0:03:34.4]} 13. Qd2 {[%clk 0:03:19]} 13... Ba6 {[%clk 0:03:27.3]} 14. Be2 {[%clk
0:03:15.9]} 14... O-O-O {[%clk 0:03:24.9]} 15. O-O {[%clk 0:03:12.8]} 15... f5
{[%clk 0:03:20.6]} 16. Na4 {[%clk 0:03:03.7]} 16... e4 {[%clk 0:03:05.9]} 17.
Nxc5 {[%clk 0:02:53.6]} 17... bxc5 {[%clk 0:03:04]} 18. d4 {[%clk 0:02:34.2]}
18... Bxe2 {[%clk 0:02:57.5]} 19. Qxe2 {[%clk 0:02:32.5]} 19... cxd4 {[%clk
0:02:53.8]} 20. Qa6+ {[%clk 0:02:30.3]} 20... Kd7 {[%clk 0:02:44.3]} 21. exd4
{[%clk 0:02:00.7]} 21... Qxb3 {[%clk 0:02:37.6]} 22. Rac1 {[%clk 0:01:49]} 22...
Qb5 {[%clk 0:02:02.3]} 23. Qxb5 {[%clk 0:01:45.9]} 1-0

[Event "Live Chess"]
[Site "Chess.com"]
[Date "2023.05.21"]
[Round "-"]
[White "Ocelot32"]
[Black "Chesscoach_Golichenko"]
[Result "0-1"]
[WhiteElo "1378"]
[BlackElo "2611"]
[TimeControl "300"]
[EndTime "4:23:12 PDT"]
[Termination "Chesscoach_Golichenko won by checkmate"]

1. e4 {[%clk 0:04:56.4]} 1... Nf6 {[%clk 0:04:58.7]} 2. e5 {[%clk 0:04:54.1]}
2... Nd5 {[%clk 0:04:56.8]} 3. d4 {[%clk 0:04:52.4]} 3... d6 {[%clk 0:04:56.1]}
4. Nf3 {[%clk 0:04:49.7]} 4... g6 {[%clk 0:04:54.1]} 5. Bc4 {[%clk 0:04:47.7]}
5... c6 {[%clk 0:04:52.5]} 6. O-O {[%clk 0:04:42.4]} 6... Bg7 {[%clk 0:04:50.8]}
7. Bxd5 {[%clk 0:04:39.3]} 7... cxd5 {[%clk 0:04:46.7]} 8. Nc3 {[%clk
0:04:38.5]} 8... dxe5 {[%clk 0:04:45.3]} 9. Nxe5 {[%clk 0:04:32.9]} 9... O-O
{[%clk 0:04:42.9]} 10. Be3 {[%clk 0:04:26.3]} 10... Nc6 {[%clk 0:04:40.8]} 11.
Nxc6 {[%clk 0:04:24]} 11... bxc6 {[%clk 0:04:39.4]} 12. Ne2 {[%clk 0:04:23]}
12... c5 {[%clk 0:04:30.6]} 13. c3 {[%clk 0:04:21.1]} 13... cxd4 {[%clk
0:04:28.3]} 14. Bxd4 {[%clk 0:04:18.1]} 14... e5 {[%clk 0:04:25.8]} 15. Bc5
{[%clk 0:04:12.8]} 15... Re8 {[%clk 0:04:24.4]} 16. Ng3 {[%clk 0:04:05.6]} 16...
d4 {[%clk 0:04:06.1]} 17. cxd4 {[%clk 0:03:53.8]} 17... exd4 {[%clk 0:04:04.6]}
18. Qf3 {[%clk 0:03:49.6]} 18... Ba6 {[%clk 0:03:47.4]} 19. Rfd1 {[%clk
0:03:43.2]} 19... d3 {[%clk 0:03:37.8]} 20. Rd2 {[%clk 0:03:18.7]} 20... Qa5
{[%clk 0:03:31]} 21. Ne4 {[%clk 0:03:04.4]} 21... Bb7 {[%clk 0:02:53.7]} 22. Qf4
{[%clk 0:02:45.7]} 22... Rxe4 {[%clk 0:02:44.6]} 23. Qg5 {[%clk 0:02:19.5]}
23... Re5 {[%clk 0:02:42.4]} 24. Qf4 {[%clk 0:02:09.9]} 24... Rxc5 {[%clk
0:02:37.2]} 25. Rad1 {[%clk 0:02:09.4]} 25... Qc7 {[%clk 0:02:33.4]} 26. Qe3
{[%clk 0:02:04.5]} 26... Qc6 {[%clk 0:02:28.4]} 27. f3 {[%clk 0:02:01.2]} 27...
Rd8 {[%clk 0:02:25.2]} 28. Rxd3 {[%clk 0:01:56.9]} 28... Rxd3 {[%clk 0:02:20.7]}
29. Qxd3 {[%clk 0:01:52.1]} 29... Rd5 {[%clk 0:02:17.4]} 30. Qe2 {[%clk
0:01:45]} 30... Qc5+ {[%clk 0:02:05.8]} 31. Kf1 {[%clk 0:01:32.5]} 31... Ba6
{[%clk 0:01:58]} 32. Qxa6 {[%clk 0:01:22.1]} 32... Rxd1+ {[%clk 0:01:55.9]} 33.
Ke2 {[%clk 0:01:21.6]} 33... Qc2+ {[%clk 0:01:54.1]} 34. Ke3 {[%clk 0:01:19.9]}
34... Qd2+ {[%clk 0:01:52.6]} 35. Ke4 {[%clk 0:01:18.6]} 35... f5# {[%clk
0:01:50.7]} 0-1

[Event "Live Chess"]
[Site "Chess.com"]
[Date "2023.05.21"]
[Round "-"]
[White "Biranidun"]
[Black "JoshMcK"]
[Result "1-0"]
[WhiteElo "2533"]
[BlackElo "1517"]
[TimeControl "300"]
[EndTime "4:23:18 PDT"]
[Termination "Biranidun won by resignation"]

1. e4 {[%clk 0:04:59.1]} 1... c6 {[%clk 0:04:58.5]} 2. d4 {[%clk 0:04:58.1]}
2... d5 {[%clk 0:04:57.7]} 3. e5 {[%clk 0:04:57.8]} 3... c5 {[%clk 0:04:56.6]}
4. dxc5 {[%clk 0:04:56.5]} 4... e6 {[%clk 0:04:55.4]} 5. a3 {[%clk 0:04:55.8]}
5... Bxc5 {[%clk 0:04:53.8]} 6. Nf3 {[%clk 0:04:55.5]} 6... Nc6 {[%clk
0:04:51.6]} 7. Bd3 {[%clk 0:04:53.9]} 7... Nge7 {[%clk 0:04:49.6]} 8. b4 {[%clk
0:04:53.2]} 8... Bb6 {[%clk 0:04:47.9]} 9. Bb2 {[%clk 0:04:52.8]} 9... Ng6
{[%clk 0:04:45.7]} 10. h4 {[%clk 0:04:50.3]} 10... O-O {[%clk 0:04:40.7]} 11. h5
{[%clk 0:04:49.5]} 11... Nge7 {[%clk 0:04:39.7]} 12. h6 {[%clk 0:04:48.2]} 12...
g6 {[%clk 0:04:38.1]} 13. Nbd2 {[%clk 0:04:46.7]} 13... Nf5 {[%clk 0:04:36.8]}
14. c4 {[%clk 0:04:37.9]} 14... d4 {[%clk 0:04:31.1]} 15. g4 {[%clk 0:04:32.2]}
15... Nfe7 {[%clk 0:04:28]} 16. Ne4 {[%clk 0:04:31.6]} 16... a5 {[%clk
0:04:21.6]} 17. b5 {[%clk 0:04:27.1]} 17... Nb8 {[%clk 0:04:19.4]} 18. a4 {[%clk
0:04:22.9]} 18... Nd7 {[%clk 0:04:13.4]} 19. Ba3 {[%clk 0:04:21.1]} 19... Re8
{[%clk 0:04:08.9]} 20. Rc1 {[%clk 0:04:09.6]} 20... Ba7 {[%clk 0:03:48.7]} 21.
Qd2 {[%clk 0:04:02.8]} 21... Kh8 {[%clk 0:03:41.2]} 22. Qf4 {[%clk 0:04:01]}
22... Rf8 {[%clk 0:03:36.4]} 23. Nfg5 {[%clk 0:03:59.2]} 23... Qe8 {[%clk
0:03:30.8]} 24. Nf6 {[%clk 0:03:57.6]} 24... Ng8 {[%clk 0:03:19.9]} 25. Nxe8
{[%clk 0:03:56.4]} 1-0

[Event "Live Chess"]
[Site "Chess.com"]
[Date "2023.05.21"]
[Round "-"]
[White "Nakula1000"]
[Black "HoarseyHorsey"]
[Result "1-0"]
[WhiteElo "572"]
[BlackElo "1452"]
[TimeControl "300"]
[EndTime "4:23:24 PDT"]
[Termination "Nakula1000 won by resignation"]

1. e4 {[%clk 0:04:57.2]} 1... c5 {[%clk 0:04:58.8]} 2. Nf3 {[%clk 0:04:55]} 2...
e6 {[%clk 0:04:58.3]} 3. Nc3 {[%clk 0:04:51.7]} 3... Nc6 {[%clk 0:04:56.7]} 4.
d4 {[%clk 0:04:48.6]} 4... cxd4 {[%clk 0:04:55.5]} 5. Nxd4 {[%clk 0:04:45.3]}
5... Nf6 {[%clk 0:04:54.1]} 6. a3 {[%clk 0:04:42.9]} 6... Be7 {[%clk 0:04:50.3]}
7. Nxc6 {[%clk 0:04:40.7]} 7... bxc6 {[%clk 0:04:48.9]} 8. e5 {[%clk 0:04:38.7]}
8... Nd5 {[%clk 0:04:47.4]} 9. Qg4 {[%clk 0:04:35.6]} 9... O-O {[%clk
0:04:41.8]} 10. Bh6 {[%clk 0:04:33.1]} 10... g6 {[%clk 0:04:36.9]} 11. Qd4
{[%clk 0:04:30.7]} 11... Nxc3 {[%clk 0:04:27.8]} 12. Bxf8 {[%clk 0:04:26.4]}
12... Bxf8 {[%clk 0:04:26.4]} 13. Qxc3 {[%clk 0:04:19.6]} 13... Bg7 {[%clk
0:04:25.3]} 14. O-O-O {[%clk 0:04:15.5]} 14... Qc7 {[%clk 0:04:24.6]} 15. f4
{[%clk 0:04:08]} 15... Rb8 {[%clk 0:04:22.7]} 16. Be2 {[%clk 0:04:05.9]} 16...
Bf8 {[%clk 0:04:20.2]} 17. h4 {[%clk 0:04:01.9]} 17... d6 {[%clk 0:04:16.2]} 18.
h5 {[%clk 0:03:51]} 18... dxe5 {[%clk 0:04:12.4]} 19. hxg6 {[%clk 0:03:49.4]}
19... hxg6 {[%clk 0:04:06.7]} 20. Rd8 {[%clk 0:03:47]} 20... Qxd8 {[%clk
0:03:54.7]} 21. Qxe5 {[%clk 0:03:45.4]} 21... Bg7 {[%clk 0:03:50.6]} 22. Qxb8
{[%clk 0:03:43.7]} 22... Bf6 {[%clk 0:03:43.9]} 23. Rd1 {[%clk 0:03:41.5]} 23...
Qb6 {[%clk 0:03:33.8]} 24. Qxc8+ {[%clk 0:03:39.5]} 24... Kg7 {[%clk 0:03:33.7]}
25. c3 {[%clk 0:03:37.8]} 25... Qe3+ {[%clk 0:03:27.9]} 26. Rd2 {[%clk
0:03:35.7]} 26... Qxf4 {[%clk 0:03:26.1]} 27. Qxc6 {[%clk 0:03:33.6]} 27... Bg5
{[%clk 0:03:19.2]} 28. Qd7 {[%clk 0:03:32.1]} 28... Qf2 {[%clk 0:03:09.9]} 29.
Kc2 {[%clk 0:03:29.3]} 29... Bxd2 {[%clk 0:03:08.3]} 30. Kxd2 {[%clk 0:03:28]}
30... Qf4+ {[%clk 0:03:06]} 31. Kd1 {[%clk 0:03:26.6]} 31... Qf5 {[%clk
0:02:54.8]} 32. Qd3 {[%clk 0:03:24.4]} 32... Qg5 {[%clk 0:02:39.5]} 33. g4
{[%clk 0:03:21.6]} 33... Qh4 {[%clk 0:02:28.6]} 34. Qd4+ {[%clk 0:03:19.5]}
34... f6 {[%clk 0:02:27.8]} 35. Qxa7+ {[%clk 0:03:17.3]} 35... Kh6 {[%clk
0:02:26.7]} 36. Qe3+ {[%clk 0:03:14.5]} 36... g5 {[%clk 0:02:22.6]} 37. Qxe6
{[%clk 0:03:12.7]} 37... Qh1+ {[%clk 0:02:21.8]} 38. Kc2 {[%clk 0:03:11.2]}
38... Qg2 {[%clk 0:02:06.9]} 39. a4 {[%clk 0:03:08.7]} 39... Qf2 {[%clk
0:01:46.6]} 40. a5 {[%clk 0:03:08.6]} 40... Kg7 {[%clk 0:01:42.1]} 41. a6 {[%clk
0:03:08.5]} 1-0

[Event "Live Chess"]
[Site "Chess.com"]
[Date "2023.05.21"]
[Round "-"]
[White "JoeRoot66"]
[Black "wot-not"]
[Result "1-0"]
[WhiteElo "1921"]
[BlackElo "1570"]
[TimeControl "300"]
[EndTime "4:23:25 PDT"]
[Termination "JoeRoot66 won by resignation"]

1. e4 {[%clk 0:04:59.4]} 1... e6 {[%clk 0:04:58.2]} 2. d4 {[%clk 0:04:58.2]}
2... d5 {[%clk 0:04:57.5]} 3. Bd3 {[%clk 0:04:58]} 3... dxe4 {[%clk 0:04:39.5]}
4. Bxe4 {[%clk 0:04:57.9]} 4... Nf6 {[%clk 0:04:38.3]} 5. Bf3 {[%clk 0:04:56.1]}
5... c5 {[%clk 0:04:30]} 6. Ne2 {[%clk 0:04:54]} 6... Nc6 {[%clk 0:04:23.9]} 7.
Be3 {[%clk 0:04:51.3]} 7... cxd4 {[%clk 0:04:19.9]} 8. Nxd4 {[%clk 0:04:48.7]}
8... Nxd4 {[%clk 0:04:18.7]} 9. Qxd4 {[%clk 0:04:47.1]} 9... Qxd4 {[%clk
0:04:17.2]} 10. Bxd4 {[%clk 0:04:47]} 10... Be7 {[%clk 0:04:12.7]} 11. Nc3
{[%clk 0:04:44.3]} 11... O-O {[%clk 0:04:11.5]} 12. O-O-O {[%clk 0:04:41.5]}
12... a5 {[%clk 0:03:59.8]} 13. Nb5 {[%clk 0:04:40]} 13... Ra6 {[%clk
0:03:50.5]} 14. Nc7 {[%clk 0:04:35.8]} 14... Rc6 {[%clk 0:03:43.2]} 15. Bxc6
{[%clk 0:04:34.3]} 15... bxc6 {[%clk 0:03:42.7]} 16. Be5 {[%clk 0:04:31.9]}
16... Nd5 {[%clk 0:03:37.5]} 17. Nxd5 {[%clk 0:04:29]} 17... cxd5 {[%clk
0:03:36.7]} 18. Rd3 {[%clk 0:04:25.9]} 18... Ba6 {[%clk 0:03:28.9]} 19. Rg3
{[%clk 0:04:23.1]} 19... f6 {[%clk 0:03:25.2]} 20. Bc7 {[%clk 0:04:20.4]} 20...
a4 {[%clk 0:03:22.7]} 21. Re1 {[%clk 0:04:16.8]} 21... e5 {[%clk 0:03:20.8]} 22.
c3 {[%clk 0:04:04.1]} 22... Bc5 {[%clk 0:03:13.7]} 23. f3 {[%clk 0:03:55.8]}
23... Bf2 {[%clk 0:03:12.1]} 24. Rd1 {[%clk 0:03:53.9]} 24... Bxg3 {[%clk
0:03:10.3]} 25. hxg3 {[%clk 0:03:53.8]} 25... Bc4 {[%clk 0:02:47.2]} 26. a3
{[%clk 0:03:36.7]} 26... Rc8 {[%clk 0:02:25.4]} 27. Bd6 {[%clk 0:03:34.4]} 27...
Kf7 {[%clk 0:02:18.3]} 28. Kb1 {[%clk 0:03:33.6]} 28... Ke6 {[%clk 0:02:15.2]}
29. Bb4 {[%clk 0:03:32.3]} 29... Kf5 {[%clk 0:02:06.2]} 30. Rh1 {[%clk
0:03:25.6]} 30... h6 {[%clk 0:02:02.2]} 31. Rh4 {[%clk 0:03:22.8]} 31... Rd8
{[%clk 0:01:46.4]} 32. Kc2 {[%clk 0:03:16.6]} 32... Rd7 {[%clk 0:01:43.9]} 33.
Kd2 {[%clk 0:03:15.2]} 33... Bb3 {[%clk 0:01:27.2]} 34. Ke3 {[%clk 0:03:04.2]}
34... Bc2 {[%clk 0:01:23.1]} 35. Rg4 {[%clk 0:02:55.6]} 35... g6 {[%clk
0:01:17.3]} 36. Rh4 {[%clk 0:02:50.1]} 36... h5 {[%clk 0:01:15.7]} 37. Bf8
{[%clk 0:02:43]} 37... Bb3 {[%clk 0:01:01.7]} 38. Bh6 {[%clk 0:02:40.9]} 38...
Bc4 {[%clk 0:01:00]} 39. g4+ {[%clk 0:02:38.5]} 39... Ke6 {[%clk 0:00:58.2]} 40.
gxh5 {[%clk 0:02:37]} 40... g5 {[%clk 0:00:55.6]} 41. Rh2 {[%clk 0:02:33.6]}
41... d4+ {[%clk 0:00:53.9]} 42. cxd4 {[%clk 0:02:32.5]} 42... exd4+ {[%clk
0:00:53.4]} 43. Kd2 {[%clk 0:02:31.9]} 43... d3 {[%clk 0:00:48]} 44. Bf8 {[%clk
0:02:30.3]} 44... Rh7 {[%clk 0:00:42.8]} 45. h6 {[%clk 0:02:28.6]} 45... Kf7
{[%clk 0:00:41.2]} 46. Bg7 {[%clk 0:02:27.2]} 46... Kg6 {[%clk 0:00:37.5]} 47.
Rh1 {[%clk 0:02:25]} 47... f5 {[%clk 0:00:34.6]} 48. Rc1 {[%clk 0:02:23.5]}
48... g4 {[%clk 0:00:33]} 49. Rxc4 {[%clk 0:02:21.3]} 1-0

[Event "Live Chess"]
[Site "Chess.com"]
[Date "2023.05.21"]
[Round "-"]
[White "elephantgerrald"]
[Black "Crowded_House"]
[Result "0-1"]
[WhiteElo "686"]
[BlackElo "1650"]
[TimeControl "300"]
[EndTime "4:23:26 PDT"]
[Termination "Crowded_House won on time"]

1. e4 {[%clk 0:04:51]} 1... e6 {[%clk 0:04:58.9]} 2. d4 {[%clk 0:04:48.9]} 2...
d5 {[%clk 0:04:57.7]} 3. e5 {[%clk 0:04:47.6]} 3... c5 {[%clk 0:04:55.3]} 4.
dxc5 {[%clk 0:04:45.7]} 4... Bxc5 {[%clk 0:04:52.3]} 5. c4 {[%clk 0:04:43.8]}
5... Ne7 {[%clk 0:04:42.2]} 6. cxd5 {[%clk 0:04:41.8]} 6... Qxd5 {[%clk
0:04:40.9]} 7. Qxd5 {[%clk 0:04:39.5]} 7... Nxd5 {[%clk 0:04:40.3]} 8. Bb5+
{[%clk 0:04:36]} 8... Bd7 {[%clk 0:04:37.9]} 9. Bxd7+ {[%clk 0:04:34.6]} 9...
Nxd7 {[%clk 0:04:37.5]} 10. Nc3 {[%clk 0:04:31.6]} 10... Nxc3 {[%clk 0:04:31.3]}
11. bxc3 {[%clk 0:04:30.2]} 11... Nxe5 {[%clk 0:04:30.4]} 12. Be3 {[%clk
0:04:22.3]} 12... Bxe3 {[%clk 0:04:22.2]} 13. fxe3 {[%clk 0:04:20.2]} 13... Nd3+
{[%clk 0:04:20.9]} 14. Kd2 {[%clk 0:04:18.1]} 14... Nf2 {[%clk 0:04:18]} 15. Nf3
{[%clk 0:04:16.2]} 15... Nxh1 {[%clk 0:04:16.5]} 16. Rxh1 {[%clk 0:04:05.6]}
16... O-O-O+ {[%clk 0:04:13.8]} 17. Ke2 {[%clk 0:03:53.5]} 17... f6 {[%clk
0:04:12.5]} 18. g4 {[%clk 0:03:39.4]} 18... h6 {[%clk 0:04:10.4]} 19. h4 {[%clk
0:03:26.8]} 19... g5 {[%clk 0:04:04.7]} 20. hxg5 {[%clk 0:03:17.8]} 20... hxg5
{[%clk 0:04:03.8]} 21. Rxh8 {[%clk 0:03:13.1]} 21... Rxh8 {[%clk 0:04:01.6]} 22.
Nd4 {[%clk 0:03:08.4]} 22... Kd7 {[%clk 0:03:47.5]} 23. Nb5 {[%clk 0:03:06.4]}
23... a6 {[%clk 0:03:42]} 24. Nd4 {[%clk 0:03:04.7]} 24... Rh2+ {[%clk
0:03:40.6]} 25. Kd3 {[%clk 0:02:56.5]} 25... Rxa2 {[%clk 0:03:38.7]} 26. e4
{[%clk 0:02:52.8]} 26... Rg2 {[%clk 0:03:35.4]} 27. Ke3 {[%clk 0:02:20.5]} 27...
Rxg4 {[%clk 0:03:20.1]} 28. Kf3 {[%clk 0:02:19.1]} 28... Rh4 {[%clk 0:03:13.6]}
29. c4 {[%clk 0:01:52.8]} 29... Rh3+ {[%clk 0:03:08]} 30. Kg4 {[%clk 0:01:50.8]}
30... Rc3 {[%clk 0:03:02.1]} 31. Nb3 {[%clk 0:01:36.6]} 31... Rxc4 {[%clk
0:02:59.1]} 32. Nd2 {[%clk 0:01:19.4]} 32... Rd4 {[%clk 0:02:56.5]} 33. Nf3
{[%clk 0:01:13.2]} 33... Rxe4+ {[%clk 0:02:55.2]} 34. Kg3 {[%clk 0:01:11.6]}
34... a5 {[%clk 0:02:53.7]} 35. Nd2 {[%clk 0:01:10]} 35... Re3+ {[%clk
0:02:49.3]} 36. Kf2 {[%clk 0:01:08.6]} 36... Rh3 {[%clk 0:02:43.8]} 37. Nf3
{[%clk 0:01:05.8]} 37... Rxf3+ {[%clk 0:02:42.1]} 38. Kxf3 {[%clk 0:00:47.1]}
38... b5 {[%clk 0:02:41.5]} 39. Ke2 {[%clk 0:00:46.3]} 39... b4 {[%clk
0:02:40.9]} 40. Kd2 {[%clk 0:00:45.7]} 40... b3 {[%clk 0:02:40.4]} 41. Kc1
{[%clk 0:00:44.3]} 41... a4 {[%clk 0:02:40.1]} 42. Kb2 {[%clk 0:00:43.6]} 42...
g4 {[%clk 0:02:39]} 43. Ka3 {[%clk 0:00:42.1]} 43... g3 {[%clk 0:02:37.9]} 44.
Kxa4 {[%clk 0:00:41.4]} 44... b2 {[%clk 0:02:37.6]} 45. Kb3 {[%clk 0:00:40.4]}
45... b1=Q+ {[%clk 0:02:36.4]} 46. Kc3 {[%clk 0:00:39.4]} 46... g2 {[%clk
0:02:35.6]} 47. Kd4 {[%clk 0:00:38.5]} 47... g1=Q+ {[%clk 0:02:34.2]} 48. Kc4
{[%clk 0:00:37.8]} 48... Qbc1+ {[%clk 0:02:32.3]} 49. Kd3 {[%clk 0:00:28]} 49...
Qgd1+ {[%clk 0:02:30.5]} 50. Ke4 {[%clk 0:00:26.7]} 50... Qcc2+ {[%clk
0:02:29.5]} 0-1

[Event "Live Chess"]
[Site "Chess.com"]
[Date "2023.05.21"]
[Round "-"]
[White "hturner40"]
[Black "FlyingChessKestrel13"]
[Result "1-0"]
[WhiteElo "1787"]
[BlackElo "2084"]
[TimeControl "300"]
[EndTime "4:23:27 PDT"]
[Termination "hturner40 won by resignation"]

1. Nf3 {[%clk 0:04:57]} 1... d5 {[%clk 0:04:58.8]} 2. g3 {[%clk 0:04:55]} 2...
Bf5 {[%clk 0:04:57.4]} 3. c4 {[%clk 0:04:51.9]} 3... e6 {[%clk 0:04:56.3]} 4.
Qb3 {[%clk 0:04:49.8]} 4... Nd7 {[%clk 0:04:52.4]} 5. cxd5 {[%clk 0:04:45]} 5...
Nc5 {[%clk 0:04:45.9]} 6. Qb5+ {[%clk 0:04:41.8]} 6... Qd7 {[%clk 0:04:42.1]} 7.
Qxd7+ {[%clk 0:04:37.8]} 7... Nxd7 {[%clk 0:04:40.8]} 8. dxe6 {[%clk 0:04:36.1]}
8... Bxe6 {[%clk 0:04:40.4]} 9. Bg2 {[%clk 0:04:34.6]} 9... c6 {[%clk 0:04:39]}
10. O-O {[%clk 0:04:32.4]} 10... Ngf6 {[%clk 0:04:37.6]} 11. Nc3 {[%clk
0:04:30.9]} 11... Bc5 {[%clk 0:04:35.2]} 12. d4 {[%clk 0:04:28]} 12... Bb6
{[%clk 0:04:33.7]} 13. e4 {[%clk 0:04:23]} 13... O-O {[%clk 0:04:29.8]} 14. h3
{[%clk 0:04:16.6]} 14... Rfe8 {[%clk 0:04:26.7]} 15. Be3 {[%clk 0:04:09.3]}
15... Bc4 {[%clk 0:04:24.9]} 16. Rfe1 {[%clk 0:03:57.8]} 16... Ba5 {[%clk
0:04:13.4]} 17. Nd2 {[%clk 0:03:54.2]} 17... Bd3 {[%clk 0:04:07.1]} 18. f3
{[%clk 0:03:51.6]} 18... Rad8 {[%clk 0:03:58.3]} 19. Bf1 {[%clk 0:03:50]} 19...
Bxf1 {[%clk 0:03:56.6]} 20. Kxf1 {[%clk 0:03:48.7]} 20... Bb6 {[%clk 0:03:53.8]}
21. Nc4 {[%clk 0:03:41.7]} 21... Bc7 {[%clk 0:03:48.9]} 22. Kf2 {[%clk
0:03:35.6]} 22... b5 {[%clk 0:03:45.6]} 23. Nd2 {[%clk 0:03:29.6]} 23... Bb6
{[%clk 0:03:44.3]} 24. a3 {[%clk 0:03:16.6]} 24... Nf8 {[%clk 0:03:42.9]} 25.
Nb3 {[%clk 0:03:12.3]} 25... a5 {[%clk 0:03:38.6]} 26. Rad1 {[%clk 0:03:09.4]}
26... Ne6 {[%clk 0:03:36]} 27. d5 {[%clk 0:02:32.9]} 27... Bxe3+ {[%clk
0:03:28.3]} 28. Rxe3 {[%clk 0:02:31.7]} 28... cxd5 {[%clk 0:03:26.7]} 29. Nxd5
{[%clk 0:02:15.4]} 29... Nxd5 {[%clk 0:03:15.8]} 30. exd5 {[%clk 0:02:11.8]}
30... a4 {[%clk 0:03:12]} 31. Na5 {[%clk 0:01:55.4]} 31... Nc5 {[%clk
0:03:09.7]} 32. Rxe8+ {[%clk 0:01:46.8]} 32... Rxe8 {[%clk 0:03:08.3]} 33. d6
{[%clk 0:01:45.4]} 33... Rd8 {[%clk 0:03:07.1]} 34. Nc6 {[%clk 0:01:37.2]} 34...
Rd7 {[%clk 0:03:05.1]} 35. Rd5 {[%clk 0:01:20.9]} 35... Nb7 {[%clk 0:03:00.8]}
36. Rxb5 {[%clk 0:01:11.3]} 36... h6 {[%clk 0:03:00.1]} 37. Ne5 {[%clk
0:01:02.2]} 37... Nxd6 {[%clk 0:02:53]} 38. Rb8+ {[%clk 0:00:59.8]} 1-0